fUSD/lending_fUSD_20250211
["ID","MTS","AMOUNT","RATE_DAILY","PERIOD"]
[352701565,1739255434325,-151.0,0.00010958,2]
[352701566,1739255434335,-151.0,0.00010958,2]
[352701567,1739255434346,-151.0,0.00010958,2]
[352701568,1739255434356,-500.0,0.00010958,2]
[352701569,1739255434364,-244.84180271,0.00010958,2]
[352701570,1739255434372,-565.4909748,0.00010958,2]
[352701571,1739255434379,-791.97,0.00010958,2]
[352701572,1739255434387,-500.0,0.00010958,2]
[352701573,1739255434393,-500.0,0.00010958,2]
[352701574,1739255434402,-997.29,0.00010958,2]
[352701575,1739255434411,-500.0,0.00010958,2]
[352701576,1739255434420,-500.0,0.00010958,2]
[352701577,1739255434430,-500.0,0.00010958,2]
[352701578,1739255434439,-990.63,0.00010958,2]
[352701579,1739255434448,-500.0,0.00010958,2]
[352701580,1739255434458,-641.52,0.00010958,2]
[352701581,1739255434468,-561.6,0.00010958,2]
[352701582,1739255434477,-500.0,0.00010958,2]
[352701583,1739255434486,-500.0,0.00010958,2]
[352701584,1739255434495,-500.0,0.00010958,2]
[352701585,1739255434504,-500.0,0.00010958,2]
[352701586,1739255434513,-500.0,0.00010958,2]
[352701587,1739255434522,-500.0,0.00010958,2]
[352701588,1739255434532,-598.39,0.00010958,2]
[352701589,1739255434541,-500.0,0.00010958,2]
[352701590,1739255434550,-500.0,0.00010958,2]
[352701591,1739255434559,-757.06,0.00010958,2]
[352701592,1739255434568,-500.0,0.00010958,2]
[352701593,1739255434578,-1114.37,0.00010958,2]
[352701594,1739255434587,-500.0,0.00010958,2]
[352701595,1739255434597,-500.0,0.00010958,2]
[352701596,1739255434606,-509.97,0.00010958,2]
[352701597,1739255434616,-500.0,0.00010958,2]
[352701598,1739255434625,-695.56,0.00010958,2]
[352701599,1739255434634,-500.0,0.00010958,2]
[352701600,1739255434643,-836.02,0.00010958,2]
[352701601,1739255434651,-500.0,0.00010958,2]
[352701602,1739255434661,-500.0,0.00010958,2]
[352701603,1739255434670,-200.0,0.00010958,2]
[352701604,1739255434679,-500.0,0.00010958,2]
[352701605,1739255434687,-500.0,0.00010958,2]
[352701606,1739255434696,-211.09638634,0.00010958,2]
[352701607,1739255434705,-897.46,0.00010958,2]
[352701608,1739255434714,-500.0,0.00010958,2]
[352701609,1739255434723,-653.61,0.00010958,2]
[352701610,1739255434733,-500.0,0.00010958,2]
[352701611,1739255434741,-1083.87,0.00010958,2]
[352701612,1739255434750,-500.0,0.00010958,2]
[352701613,1739255434759,-399.43139611,0.00010958,2]
[352701614,1739255434769,-500.0,0.00010958,2]
[352701615,1739255434778,-500.0,0.00010958,2]
[352701616,1739255434786,-547.66,0.00010958,2]
[352701617,1739255434795,-500.0,0.00010958,2]
[352701618,1739255434804,-500.0,0.00010958,2]
[352701619,1739255434813,-500.0,0.00010958,2]
[352701620,1739255434822,-500.0,0.00010958,2]
[352701621,1739255434831,-500.0,0.00010958,2]
[352701622,1739255434841,-500.0,0.00010958,2]
[352701623,1739255434850,-500.0,0.00010958,2]
[352701624,1739255434859,-688.77,0.00010958,2]
[352701625,1739255434869,-500.0,0.00010958,2]
[352701626,1739255434878,-510.67720293,0.00010958,2]
[352701627,1739255434887,-520.19172596,0.00010958,2]
[352701628,1739255434896,-791.92,0.00010958,2]
[352701629,1739255434906,-500.0,0.00010958,2]
[352701630,1739255434915,-500.0,0.00010958,2]
[352701631,1739255434924,-949.37,0.00010958,2]
[352701632,1739255434933,-500.0,0.00010958,2]
[352701633,1739255434942,-603.12185211,0.00010958,2]
[352701639,1739255437627,-325.87814789,0.00010958,2]
[352701640,1739255437639,-500.0,0.00010958,2]
[352701641,1739255437651,-589.02549644,0.00010958,2]
[352701642,1739255437662,-3156.67,0.00010958,2]
[352701643,1739255437674,-500.0,0.00010958,2]
[352701644,1739255437685,-828.81,0.00010958,2]
[352701645,1739255437696,-505.37453887,0.00010958,2]
[352701646,1739255437707,-500.0,0.00010958,2]
[352701647,1739255437718,-438.55246354,0.00010958,2]
[352701648,1739255437742,-61.44753646,0.00010958,2]
[352701649,1739255437754,-500.0,0.00010958,2]
[352701650,1739255437764,-490.55246354,0.00010958,2]
[352701651,1739255437777,-9.44753646,0.00010958,2]
[352701652,1739255437791,-873.48,0.00010958,2]
[352701653,1739255437801,-472.21717731,0.00010958,2]
[352701654,1739255437816,-27.78282269,0.00010958,2]
[352701655,1739255437826,-1507.42,0.00010958,2]
[352701656,1739255437837,-506.00079374,0.00010958,2]
[352701657,1739255437849,-500.0,0.00010958,2]
[352701658,1739255437860,-507.62670299,0.00010958,2]
[352701659,1739255437870,-500.0,0.00010958,2]
[352701660,1739255437883,-500.0,0.00010958,2]
[352701661,1739255437893,-1386.36968058,0.00010958,2]
[352701662,1739255437908,-1215.50031942,0.00010958,2]
[352701663,1739255437918,-500.0,0.00010958,7]
[352701664,1739255437929,-253.35968058,0.00010958,2]
[352701665,1739255437958,-255.76775205,0.00010958,2]
[352701666,1739255437968,-288.55952042,0.00010958,2]
[352701667,1739255437981,-269.72662645,0.00010958,2]
[352701671,1739255438016,-1051.47385313,0.00010958,2]
[352701673,1739255438025,-500.0,0.00010958,2]
[352701676,1739255438035,-500.0,0.00010958,2]
[352701678,1739255438045,-500.0,0.00010958,2]
[352701680,1739255438055,-504.37693989,0.00010958,2]
[352701682,1739255438066,-500.60630467,0.00010958,2]
[352701684,1739255438077,-507.88319479,0.00010958,2]
[352701686,1739255438088,-1632.54,0.00010958,2]
[352701688,1739255438099,-1379.6,0.00010958,2]
[352701690,1739255438109,-500.0,0.00010958,2]
[352701692,1739255438120,-500.0,0.00010958,2]
[352701694,1739255438130,-1917.49,0.00010958,2]
[352701696,1739255438140,-500.0,0.00010958,2]
[352701699,1739255438152,-3152.0,0.00010958,2]
[352701701,1739255438164,-500.0,0.00010958,2]
[352701703,1739255438175,-502.23762367,0.00010958,2]
[352701705,1739255438185,-510.76,0.00010958,2]
[352701707,1739255438196,-1000.0,0.00010958,2]
[352701710,1739255438207,-1436.38,0.00010958,2]
[352701712,1739255438217,-548.74,0.00010958,2]
[352701714,1739255438227,-500.0,0.00010958,2]
[352701716,1739255438238,-500.0,0.00010958,2]
[352701718,1739255438251,-1001.97,0.00010958,2]
[352701720,1739255438261,-500.0,0.00010958,2]
[352701722,1739255438271,-500.0,0.00010958,2]
[352701724,1739255438282,-1389.83,0.00010958,2]
[352701726,1739255438292,-500.0,0.00010958,2]
[352701728,1739255438303,-1844.52,0.00010958,2]
[352701731,1739255438315,-500.0,0.00010958,2]
[352701733,1739255438328,-500.0,0.00010958,2]
[352701735,1739255438339,-1168.84,0.00010958,2]
[352701737,1739255438351,-821.01,0.00010958,2]
[352701739,1739255438361,-508.4356099,0.00010958,2]
[352701742,1739255438372,-740.84,0.00010958,2]
[352701744,1739255438383,-1195.62,0.00010958,2]
[352701746,1739255438393,-500.0,0.00010958,2]
[352701748,1739255438403,-500.0,0.00010958,2]
[352701750,1739255438414,-500.0,0.00010958,2]
[352701752,1739255438425,-500.0,0.00010958,2]
[352701754,1739255438436,-499.88674965,0.00010958,2]
[352701755,1739255438447,-1732.91,0.00010958,2]
[352701756,1739255438457,-2077.69,0.00010958,2]
[352701758,1739255438468,-500.0,0.00010958,2]
[352701760,1739255438479,-965.91,0.00010958,2]
[352701762,1739255438490,-2204.61,0.00010958,2]
[352701764,1739255438501,-1267.5,0.00010958,2]
[352701766,1739255438511,-500.0,0.00010958,2]
[352701768,1739255438522,-502.8988218,0.00010958,2]
[352701770,1739255438533,-500.0,0.00010958,2]
[352701772,1739255438543,-1647.07,0.00010958,2]
[352701774,1739255438554,-500.0,0.00010958,2]
[352701777,1739255438565,-500.0,0.00010958,2]
[352701779,1739255438575,-803.13,0.00010958,2]
[352701781,1739255438586,-501.75389703,0.00010958,2]
[352701783,1739255438597,-500.0,0.00010958,2]
[352701784,1739255438608,-1667.19,0.00010958,2]
[352701785,1739255438618,-1128.86,0.00010958,2]
[352701786,1739255438628,-500.0,0.00010958,2]
[352701787,1739255438639,-500.0,0.00010958,2]
[352701788,1739255438649,-853.77,0.00010958,2]
[352701789,1739255438660,-717.76,0.00010958,2]
[352701790,1739255438670,-500.0,0.00010958,2]
[352701791,1739255438680,-1175.38,0.00010958,2]
[352701792,1739255438690,-2011.59,0.00010958,2]
[352701793,1739255438701,-1938.57,0.00010958,2]
[352701794,1739255438711,-567.04,0.00010958,2]
[352701795,1739255438721,-500.0,0.00010958,2]
[352701796,1739255438731,-2166.07,0.00010958,2]
[352701797,1739255438742,-176.17220712,0.00010958,2]
[352701807,1739255439099,-323.82779288,0.00010958,2]
[352701808,1739255439110,-435.67218412,0.00010958,2]
[352701811,1739255439840,-64.32781588,0.00010958,2]
[352701812,1739255439851,-500.0,0.00010958,2]
[352701813,1739255439861,-87.68281409,0.00010958,2]
[352701814,1739255439872,-1783.65718591,0.00010958,2]
[352701815,1739255439882,-2591.95,0.00010958,2]
[352701816,1739255439891,-500.0,0.00010958,2]
[352701817,1739255439900,-1057.86,0.00010958,2]
[352701818,1739255439910,-500.0,0.00010958,2]
[352701819,1739255439919,-1643.91,0.00010958,2]
[352701820,1739255439928,-2151.64,0.00010958,2]
[352701821,1739255439938,-2093.65,0.00010958,2]
[352701822,1739255439947,-1021.04,0.00010958,2]
[352701823,1739255440305,-1813.32,0.00010958,2]
[352701824,1739255440331,-500.0,0.00010958,2]
[352701825,1739255440353,-500.0,0.00010958,2]
[352701826,1739255440362,-1227.71,0.00010958,2]
[352701827,1739255440372,-500.0,0.00010958,2]
[352701828,1739255440382,-2246.17,0.00010958,2]
[352701829,1739255440392,-1474.48,0.00010958,2]
[352701830,1739255440401,-2090.6,0.00010958,2]
[352701831,1739255440411,-1080.39,0.00010958,2]
[352701832,1739255440422,-500.0,0.00010958,2]
[352701833,1739255440431,-500.0,0.00010958,2]
[352701834,1739255440440,-1982.07,0.00010958,2]
[352701835,1739255440450,-2170.8,0.00010958,2]
[352701836,1739255440459,-3956.12,0.00010958,2]
[352701837,1739255440469,-283.70149876,0.00010958,2]
[352701838,1739255440478,-2597.31,0.00010958,2]
[352701839,1739255440488,-913.8,0.00010958,2]
[352701840,1739255440497,-1626.38,0.00010958,2]
[352701841,1739255440507,-714.61,0.00010958,2]
[352701842,1739255440516,-2190.37,0.00010958,2]
[352701843,1739255440527,-6619.59,0.00010958,2]
[352701844,1739255440536,-1441.45,0.00010958,2]
[352701845,1739255440546,-500.0,0.00010958,2]
[352701846,1739255440555,-1264.63,0.00010958,2]
[352701847,1739255440565,-500.0,0.00010958,2]
[352701848,1739255440574,-657.06,0.00010958,2]
[352701849,1739255440583,-2474.58,0.00010958,2]
[352701850,1739255440592,-1483.2,0.00010958,2]
[352701851,1739255440603,-3251.33,0.00010958,2]
[352701852,1739255440612,-914.88,0.00010958,2]
[352701853,1739255440621,-1729.11,0.00010958,2]
[352701854,1739255440630,-500.0,0.00010958,2]
[352701855,1739255440641,-1864.25,0.00010958,2]
[352701856,1739255440650,-2358.98,0.00010958,2]
[352701857,1739255440659,-1424.40131533,0.00010958,2]
[352701858,1739255440672,-872.49868467,0.00010958,2]
[352701859,1739255440681,-500.0,0.00010958,2]
[352701860,1739255440691,-901.04,0.00010958,2]
[352701861,1739255440701,-392.66131533,0.00010958,2]
[352701862,1739255440712,-305.01,0.00010958,2]
[352701863,1739255440723,-1886.76792452,0.00010958,2]
[352701864,1739255440746,-376.41076015,0.00010958,2]
[352701865,1739255440755,-836.97782697,0.00010958,2]
[352701866,1739255440772,-1500.47,0.00010958,2]
[352701867,1739255440784,-3297.97908494,0.00010958,2]
[352701868,1739255441040,-424.20308809,0.00010958,2]
[352701869,1739255441050,-2298.2,0.00010958,2]
[352701870,1739255441059,-274.62,0.00010958,2]
[352701871,1739255441068,-502.25,0.00010958,2]
[352701872,1739255441078,-1904.03,0.00010958,2]
[352701873,1739255441087,-2350.1,0.00010958,2]
[352701874,1739255441098,-2889.29,0.00010958,2]
[352701875,1739255441108,-1808.58,0.00010958,2]
[352701876,1739255441117,-500.0,0.00010958,2]
[352701877,1739255441127,-276.88306825,0.00010958,2]
[352701878,1739255441136,-970.68,0.00010958,2]
[352701879,1739255441145,-500.0,0.00010958,2]
[352701880,1739255441154,-500.0,0.00010958,2]
[352701881,1739255441163,-500.0,0.00010958,2]
[352701882,1739255441172,-500.0,0.00010958,2]
[352701883,1739255441182,-1191.85,0.00010958,2]
[352701884,1739255441191,-1214.03,0.00010958,2]
[352701885,1739255441200,-4410.46,0.00010958,2]
[352701886,1739255441209,-1246.23,0.00010958,2]
[352701887,1739255441219,-661.41,0.00010958,2]
[352701888,1739255441229,-962.98,0.00010958,2]
[352701889,1739255441238,-500.0,0.00010958,2]
[352701890,1739255441250,-936.12,0.00010958,2]
[352701891,1739255441259,-2625.85299104,0.00010958,2]
[352701902,1739255442788,-189.51700896,0.00010958,2]
[352701903,1739255442798,-3290.35182677,0.00010958,2]
[352701904,1739255442810,-17.19817323,0.00010958,2]
[352701905,1739255442820,-279.01425621,0.00010958,2]
[352701906,1739255442831,-220.98574379,0.00010958,2]
[352701907,1739255442841,-500.0,0.00010958,2]
[352701908,1739255442854,-204.18209476,0.00010958,2]
[352701909,1739255442867,-521.55,0.00010958,2]
[352701910,1739255442954,-787.08790524,0.00010958,2]
[352701911,1739255442964,-1944.47,0.00010958,2]
[352701912,1739255442974,-1288.89,0.00010958,2]
[352701913,1739255442983,-187.74700431,0.00010958,2]
[352701914,1739255442995,-1871.32299569,0.00010958,2]
[352701915,1739255443004,-863.04,0.00010958,2]
[352701916,1739255443013,-506.18216163,0.00010958,2]
[352701917,1739255443023,-959.50479268,0.00010958,2]
[352701918,1739255443052,-926.4000006,0.00010958,2]
[352701919,1739255443064,-1288.14520672,0.00010958,2]
[352701920,1739255443074,-900.7,0.00010958,2]
[352701921,1739255443084,-617.86408772,0.00010958,2]
[352701929,1739255445706,-10.35591228,0.00010958,2]
[352701930,1739255445716,-627.3,0.00010958,2]
[352701931,1739255445726,-566.96684464,0.00010958,2]
[352701932,1739255445736,-496.0,0.00010958,2]
[352701933,1739255445746,-1465.41,0.00010958,2]
[352701934,1739255445757,-500.0,0.00010958,2]
[352701935,1739255445767,-500.0,0.00010958,2]
[352701936,1739255445778,-500.0,0.00010958,2]
[352701937,1739255445787,-2622.58,0.00010958,2]
[352701938,1739255445797,-500.0,0.00010958,2]
[352701939,1739255445807,-20.41971359,0.00010958,2]
[352701940,1739255445819,-629.49028641,0.00010958,2]
[352701941,1739255445828,-357.90971359,0.00010958,2]
[352701942,1739255445860,-412.53,0.00010958,2]
[352701943,1739255445887,-400.0,0.00010958,2]
[352701944,1739255445899,-159.51028641,0.00010958,2]
[352701945,1739255445910,-500.0,0.00010958,2]
[352701946,1739255445919,-111.00575157,0.00010958,2]
[352701947,1739255445949,-526.80424843,0.00010958,2]
[352701948,1739255445959,-500.0,0.00010958,2]
[352701949,1739255445970,-753.01,0.00010958,2]
[352701950,1739255445979,-1251.87,0.00010958,2]
[352701951,1739255445989,-504.93417879,0.00010958,2]
[352701952,1739255445999,-873.02,0.00010958,2]
[352701953,1739255446010,-2067.7,0.00010958,2]
[352701954,1739255446020,-500.0,0.00010958,2]
[352701955,1739255446031,-1542.69,0.00010958,2]
[352701956,1739255446040,-542.05,0.00010958,2]
[352701957,1739255446050,-569.84,0.00010958,2]
[352701958,1739255446060,-772.09,0.00010958,2]
[352701959,1739255446070,-88999.73435763,0.00010958,2]
[352701960,1739255446080,-435.21232756,0.00010958,2]
[352701961,1739255446089,-196.41101759,0.00010958,2]
[352701962,1739255446099,-555.14,0.00010959,2]
[352701963,1739255446110,-150.0,0.00010959,2]
[352701964,1739255446121,-750.5574702,0.00010999,2]
[352701965,1739255446131,-222.0,0.00011,2]
[352701966,1739255446141,-1000.0,0.00011,2]
[352701967,1739255446151,-1000.0,0.00011,2]
[352701968,1739255446161,-1000.0,0.00011,2]
[352701969,1739255446170,-1000.0,0.00011,2]
[352701970,1739255446180,-1311.0,0.00011,2]
[352701971,1739255446190,-1000.0,0.00011,3]
[352701972,1739255446200,-1000.0,0.00011,3]
[352701973,1739255446210,-1000.0,0.00011,2]
[352701974,1739255446220,-1002.0,0.00011,2]
[352701975,1739255446230,-6503.0,0.00011,2]
[352701976,1739255446239,-1925.40807525,0.00011,2]
[352701977,1739255446251,-200.0,0.00011068,2]
[352701978,1739255446263,-200.0,0.00011068,2]
[352701979,1739255446273,-200.0,0.00011068,2]
[352701980,1739255446283,-2215.9536491,0.00011085,2]
[352701981,1739255446295,-351.4039351,0.00011085,2]
[352701982,1739255446305,-3234.033,0.00011089,2]
[352701983,1739255446315,-166.629,0.00011089,2]
[352701984,1739255446325,-500.0,0.00011093,2]
[352701985,1739255446337,-308.24348265,0.00011093,2]
[352701986,1739255446348,-151.341631,0.00011094,2]
[352701987,1739255446359,-533.6,0.00011094,2]
[352701988,1739255446376,-776.771773,0.00011095,2]
[352701989,1739255446387,-624.151222,0.00011095,2]
[352701990,1739255446397,-500.0,0.00011095,2]
[352701991,1739255446407,-500.0,0.00011095,2]
[352701992,1739255446417,-500.0,0.00011095,2]
[352701993,1739255446429,-448.01201738,0.00011095,2]
[352701994,1739255446439,-500.0,0.00011095,2]
[352701995,1739255446449,-500.0,0.00011095,2]
[352701996,1739255446459,-500.0,0.00011095,2]
[352701997,1739255446469,-505.92673056,0.00011095,2]
[352701998,1739255446479,-500.0,0.00011095,2]
[352701999,1739255446489,-500.0,0.00011095,2]
[352702000,1739255446499,-500.0,0.00011095,2]
[352702001,1739255446508,-500.0,0.00011095,2]
[352702002,1739255446518,-500.0,0.00011095,2]
[352702003,1739255446528,-500.0,0.00011095,2]
[352702004,1739255446538,-513.41801585,0.00011095,2]
[352702005,1739255446548,-500.0,0.00011095,2]
[352702006,1739255446558,-511.17367661,0.00011095,2]
[352702007,1739255446568,-500.0,0.00011095,2]
[352702008,1739255446578,-500.0,0.00011095,2]
[352702009,1739255446588,-500.0,0.00011095,2]
[352702010,1739255446598,-500.0,0.00011095,2]
[352702011,1739255446609,-500.0,0.00011095,2]
[352702012,1739255446619,-500.0,0.00011095,2]
[352702013,1739255446629,-713.08,0.00011095,2]
[352702014,1739255446640,-500.0,0.00011095,2]
[352702015,1739255446651,-1253.11,0.00011095,2]
[352702016,1739255446662,-504.92,0.00011095,2]
[352702017,1739255446672,-558.11,0.00011095,2]
[352702018,1739255446682,-1059.23,0.00011095,2]
[352702019,1739255446692,-500.0,0.00011095,2]
[352702020,1739255446702,-1029.86,0.00011095,2]
[352702021,1739255446712,-500.0,0.00011095,2]
[352702022,1739255446723,-554.9,0.00011095,2]
[352702023,1739255446733,-1075.95,0.00011095,2]
[352702024,1739255446744,-500.0,0.00011095,2]
[352702025,1739255446754,-500.0,0.00011095,2]
[352702026,1739255446765,-870.16,0.00011095,2]
[352702027,1739255446775,-500.0,0.00011095,2]
[352702028,1739255446785,-500.0,0.00011095,2]
[352702029,1739255447004,-500.0,0.00011095,2]
[352702030,1739255447016,-500.0,0.00011095,2]
[352702031,1739255447027,-500.0,0.00011095,2]
[352702032,1739255447037,-1150.82,0.00011095,2]
[352702033,1739255447047,-500.0,0.00011095,2]
[352702034,1739255447056,-500.0,0.00011095,2]
[352702035,1739255447066,-500.0,0.00011095,2]
[352702036,1739255447075,-500.0,0.00011095,2]
[352702037,1739255447085,-709.72,0.00011095,2]
[352702038,1739255447095,-768.54,0.00011095,2]
[352702039,1739255447105,-916.5,0.00011095,2]
[352702040,1739255447116,-678.68,0.00011095,2]
[352702041,1739255447125,-804.97,0.00011095,2]
[352702042,1739255447135,-500.0,0.00011095,2]
[352702043,1739255447145,-519.3,0.00011095,2]
[352702044,1739255447155,-613.4,0.00011095,2]
[352702045,1739255447165,-500.0,0.00011095,2]
[352702046,1739255447175,-500.0,0.00011095,2]
[352702047,1739255447185,-687.26,0.00011095,2]
[352702048,1739255447195,-500.0,0.00011095,2]
[352702049,1739255447204,-500.0,0.00011095,2]
[352702050,1739255447214,-507.36,0.00011095,2]
[352702051,1739255447224,-500.0,0.00011095,2]
[352702052,1739255447234,-500.0,0.00011095,2]
[352702053,1739255447244,-500.0,0.00011095,2]
[352702054,1739255447257,-500.0,0.00011095,2]
[352702055,1739255447268,-899.46,0.00011095,2]
[352702056,1739255447278,-500.0,0.00011095,2]
[352702057,1739255447287,-500.0,0.00011095,2]
[352702058,1739255447299,-500.0,0.00011095,2]
[352702059,1739255447308,-217.14759444,0.00011095,2]
[352702060,1739255447318,-791.97,0.00011095,2]
[352702061,1739255447328,-997.29,0.00011095,2]
[352702062,1739255447340,-500.0,0.00011095,2]
[352702063,1739255447351,-500.0,0.00011095,2]
[352702064,1739255447362,-990.63,0.00011095,2]
[352702065,1739255447372,-500.0,0.00011095,2]
[352702066,1739255447382,-641.52,0.00011095,2]
[352702067,1739255447392,-561.6,0.00011095,2]
[352702068,1739255447402,-500.0,0.00011095,2]
[352702069,1739255447412,-500.0,0.00011095,2]
[352702070,1739255447421,-598.39,0.00011095,2]
[352702071,1739255447432,-500.0,0.00011095,2]
[352702072,1739255447442,-757.06,0.00011095,2]
[352702073,1739255447452,-1114.37,0.00011095,2]
[352702074,1739255447462,-174.71177674,0.00011095,2]
[352702075,1739255447473,-500.0,0.00011095,2]
[352702076,1739255447484,-509.97,0.00011095,2]
[352702077,1739255447495,-695.56,0.00011095,2]
[352702078,1739255447505,-500.0,0.00011095,2]
[352702079,1739255447515,-836.02,0.00011095,2]
[352702080,1739255447526,-500.0,0.00011095,2]
[352702081,1739255447536,-500.0,0.00011095,2]
[352702082,1739255447546,-500.0,0.00011095,2]
[352702083,1739255447556,-897.46,0.00011095,2]
[352702084,1739255447566,-500.0,0.00011095,2]
[352702085,1739255447576,-653.61,0.00011095,2]
[352702086,1739255447586,-1083.87,0.00011095,2]
[352702087,1739255447596,-500.0,0.00011095,2]
[352702088,1739255447607,-500.0,0.00011095,2]
[352702089,1739255447618,-547.66,0.00011095,2]
[352702090,1739255447628,-500.0,0.00011095,2]
[352702091,1739255447638,-500.0,0.00011095,2]
[352702092,1739255447648,-500.0,0.00011095,2]
[352702093,1739255447658,-688.77,0.00011095,2]
[352702094,1739255447668,-506.26928483,0.00011095,2]
[352702095,1739255447678,-791.92,0.00011095,2]
[352702096,1739255447688,-165.30789533,0.00011095,2]
[352702097,1739255447698,-500.0,0.00011095,2]
[352702098,1739255447707,-949.37,0.00011095,2]
[352702099,1739255447718,-929.0,0.00011095,2]
[352702100,1739255447729,-500.0,0.00011095,2]
[352702101,1739255447739,-3156.67,0.00011095,2]
[352702102,1739255447750,-828.81,0.00011095,2]
[352702103,1739255447760,-500.0,0.00011095,2]
[352702104,1739255447770,-500.0,0.00011095,2]
[352702105,1739255447781,-500.0,0.00011095,2]
[352702106,1739255447790,-873.48,0.00011095,2]
[352702107,1739255447801,-500.0,0.00011095,2]
[352702108,1739255447812,-1507.42,0.00011095,2]
[352702109,1739255447822,-500.0,0.00011095,2]
[352702110,1739255447833,-198.98040062,0.00011095,2]
[352702111,1739255447842,-500.0,0.00011095,2]
[352702112,1739255447853,-500.0,0.00011095,7]
[352702113,1739255447866,-500.0,0.00011095,2]
[352702114,1739255447876,-1632.54,0.00011095,2]
[352702115,1739255447887,-1379.6,0.00011095,2]
[352702116,1739255447897,-500.0,0.00011095,2]
[352702117,1739255447906,-1917.49,0.00011095,2]
[352702118,1739255447914,-500.0,0.00011095,2]
[352702119,1739255447921,-3152.0,0.00011095,2]
[352702120,1739255447930,-500.0,0.00011095,2]
[352702121,1739255447936,-510.76,0.00011095,2]
[352702122,1739255447945,-1000.0,0.00011095,2]
[352702123,1739255447956,-1436.38,0.00011095,2]
[352702124,1739255447966,-548.74,0.00011095,2]
[352702125,1739255447976,-500.0,0.00011095,2]
[352702126,1739255447987,-1001.97,0.00011095,2]
[352702127,1739255447997,-500.0,0.00011095,2]
[352702128,1739255448007,-500.0,0.00011095,2]
[352702129,1739255448016,-1389.83,0.00011095,2]
[352702130,1739255448027,-1844.52,0.00011095,2]
[352702131,1739255448037,-500.0,0.00011095,2]
[352702132,1739255448048,-1168.84,0.00011095,2]
[352702133,1739255448058,-821.01,0.00011095,2]
[352702134,1739255448067,-740.84,0.00011095,2]
[352702135,1739255448078,-1195.62,0.00011095,2]
[352702136,1739255448089,-500.0,0.00011095,2]
[352702137,1739255448100,-500.0,0.00011095,2]
[352702138,1739255448112,-1732.91,0.00011095,2]
[352702139,1739255448123,-500.0,0.00011095,2]
[352702140,1739255448133,-500.0,0.00011095,2]
[352702141,1739255448145,-2077.69,0.00011095,2]
[352702142,1739255448155,-965.91,0.00011095,2]
[352702143,1739255448166,-2204.61,0.00011095,2]
[352702144,1739255448177,-1267.5,0.00011095,2]
[352702145,1739255448188,-1647.07,0.00011095,2]
[352702146,1739255448199,-803.13,0.00011095,2]
[352702147,1739255448211,-506.99377596,0.00011095,2]
[352702148,1739255448222,-1667.19,0.00011095,2]
[352702149,1739255448232,-1128.86,0.00011095,2]
[352702150,1739255448244,-500.0,0.00011095,2]
[352702151,1739255448257,-853.77,0.00011095,2]
[352702152,1739255448268,-717.76,0.00011095,2]
[352702153,1739255448280,-396.94923724,0.00011095,2]
[352702154,1739255448290,-1175.38,0.00011095,2]
[352702155,1739255448301,-2011.59,0.00011095,2]
[352702156,1739255448311,-1938.57,0.00011095,2]
[352702157,1739255448321,-567.04,0.00011095,2]
[352702158,1739255448333,-2166.07,0.00011095,2]